fUST/lending_fUST_20250723
["ID","MTS","AMOUNT","RATE_DAILY","PERIOD"]
[374290982,1753266597586,-460.0,0.00020273,2]
[374290983,1753266597607,-460.0,0.00020273,2]
[374290984,1753266597628,-460.0,0.00020273,2]
[374290985,1753266597656,-460.0,0.00020273,2]
[374290986,1753266597678,-460.0,0.00020273,2]
[374290987,1753266597703,-555.21,0.00020273,2]
[374290988,1753266597726,-460.0,0.00020273,2]
[374290989,1753266597748,-460.0,0.00020273,2]
[374290990,1753266597770,-460.0,0.00020273,2]
[374290991,1753266597792,-460.0,0.00020273,2]
[374290992,1753266597814,-460.0,0.00020273,2]
[374290993,1753266597835,-460.0,0.00020273,2]
[374290994,1753266597858,-460.0,0.00020273,2]
[374290995,1753266597879,-460.0,0.00020273,2]
[374290996,1753266597901,-460.0,0.00020273,2]
[374290997,1753266597921,-460.0,0.00020273,2]
[374290998,1753266597942,-460.0,0.00020273,2]
[374290999,1753266597963,-706.13,0.00020273,2]
[374291000,1753266597985,-460.0,0.00020273,2]
[374291001,1753266598008,-460.0,0.00020273,2]
[374291002,1753266598030,-460.0,0.00020273,2]
[374291003,1753266598052,-461.94202711,0.00020273,2]
[374291004,1753266598181,-465.89,0.00020273,2]
[374291005,1753266598203,-180.0,0.00020273,2]
[374291006,1753266598228,-460.0,0.00020273,2]
[374291007,1753266598251,-460.0,0.00020273,2]
[374291008,1753266598274,-460.0,0.00020273,2]
[374291009,1753266598296,-460.0,0.00020273,2]
[374291010,1753266598318,-460.0,0.00020273,2]
[374291011,1753266598340,-460.0,0.00020273,2]
[374291012,1753266598363,-460.0,0.00020273,2]
[374291013,1753266598385,-460.0,0.00020273,2]
[374291014,1753266598407,-460.0,0.00020273,2]
[374291015,1753266598430,-460.0,0.00020273,2]
[374291016,1753266598453,-341.84886545,0.00020273,2]
[374291017,1753266598475,-488.85,0.00020273,2]
[374291018,1753266598498,-460.0,0.00020273,2]
[374291019,1753266598522,-460.0,0.00020273,2]
[374291020,1753266598545,-460.0,0.00020273,2]
[374291021,1753266598567,-460.0,0.00020273,2]
[374291022,1753266598590,-460.0,0.00020273,2]
[374291023,1753266598614,-460.0,0.00020273,2]
[374291024,1753266598636,-460.0,0.00020273,2]
[374291025,1753266598663,-460.0,0.00020273,2]
[374291026,1753266598686,-231.9397576,0.00020273,2]
[374291027,1753266598711,-1951.91,0.00020273,2]
[374291028,1753266598734,-460.0,0.00020273,2]
[374291029,1753266598757,-460.0,0.00020273,2]
[374291030,1753266598778,-460.0,0.00020273,2]
[374291031,1753266598801,-460.0,0.00020273,2]
[374291032,1753266598823,-460.0,0.00020273,2]
[374291033,1753266598846,-460.0,0.00020273,2]
[374291034,1753266598869,-460.0,0.00020273,2]
[374291035,1753266598892,-460.0,0.00020273,2]
[374291036,1753266598914,-460.0,0.00020273,2]
[374291037,1753266598936,-460.0,0.00020273,2]
[374291038,1753266598959,-489.58,0.00020273,2]
[374291039,1753266598982,-460.0,0.00020273,2]
[374291040,1753266599006,-460.0,0.00020273,2]
[374291041,1753266599030,-1249.58,0.00020273,2]
[374291042,1753266599054,-460.0,0.00020273,2]
[374291043,1753266599078,-1908.42,0.00020273,2]
[374291044,1753266599104,-647.91,0.00020273,2]
[374291045,1753266599128,-460.0,0.00020273,2]
[374291046,1753266599151,-460.0,0.00020273,2]
[374291047,1753266599174,-460.0,0.00020273,2]
[374291048,1753266599197,-460.0,0.00020273,2]
[374291049,1753266599220,-460.0,0.00020273,2]
[374291050,1753266599244,-460.0,0.00020273,2]
[374291051,1753266599268,-460.0,0.00020273,2]
[374291052,1753266599291,-460.0,0.00020273,2]
[374291053,1753266599313,-534.82,0.00020273,2]
[374291054,1753266599337,-460.0,0.00020273,2]
[374291055,1753266599360,-460.0,0.00020273,2]
[374291056,1753266599383,-460.0,0.00020273,2]
[374291057,1753266599407,-482.76717015,0.00020273,2]
[374291058,1753266599431,-460.0,0.00020273,2]
[374291059,1753266599454,-460.0,0.00020273,2]
[374291060,1753266599478,-3128.9,0.00020273,2]
[374291061,1753266599502,-460.0,0.00020273,2]
[374291062,1753266599525,-460.0,0.00020273,2]
[374291063,1753266599549,-149.7220838,0.00020273,2]
[374291064,1753266599775,-310.2779162,0.00020273,2]
[374291065,1753266599798,-460.0,0.00020273,2]
[374291066,1753266599817,-460.0,0.00020273,2]
[374291067,1753266599838,-460.0,0.00020273,2]
[374291068,1753266599859,-519.86613146,0.00020273,2]
[374291069,1753266599878,-460.0,0.00020273,2]
[374291070,1753266599897,-460.0,0.00020273,2]
[374291071,1753266599916,-460.0,0.00020273,2]
[374291072,1753266599935,-421.3151944,0.00020273,2]
[374291073,1753266599955,-460.0,0.00020273,2]
[374291074,1753266599977,-460.0,0.00020273,2]
[374291075,1753266599997,-577.99,0.00020273,2]
[374291076,1753266600017,-460.0,0.00020273,2]
[374291077,1753266600038,-546.12,0.00020273,2]
[374291078,1753266600063,-460.0,0.00020273,2]
[374291079,1753266600098,-460.0,0.00020273,2]
[374291080,1753266600119,-516.4,0.00020273,2]
[374291081,1753266600140,-460.0,0.00020273,2]
[374291082,1753266600160,-460.0,0.00020273,2]
[374291083,1753266600290,-460.0,0.00020273,2]
[374291084,1753266600314,-460.0,0.00020273,2]
[374291085,1753266600336,-460.0,0.00020273,2]
[374291086,1753266600359,-5204.37,0.00020273,2]
[374291087,1753266600380,-460.0,0.00020273,2]
[374291088,1753266600401,-563.7,0.00020273,2]
[374291089,1753266600424,-858.36,0.00020273,2]
[374291090,1753266600453,-460.0,0.00020273,2]
[374291091,1753266600492,-461.5182839,0.00020273,2]
[374291092,1753266600514,-460.0,0.00020273,2]
[374291093,1753266600534,-460.0,0.00020273,2]
[374291094,1753266600557,-570.94,0.00020273,2]
[374291095,1753266600577,-460.0,0.00020273,2]
[374291096,1753266600601,-650.08,0.00020273,2]
[374291097,1753266600623,-460.0,0.00020273,2]
[374291098,1753266600648,-460.0,0.00020273,2]
[374291099,1753266600671,-460.0,0.00020273,2]
[374291100,1753266600692,-460.0,0.00020273,2]
[374291101,1753266600713,-460.0,0.00020273,2]
[374291102,1753266600734,-117.89160844,0.00020273,2]
[374291118,1753266632337,-1206.50341026,0.00019068,2]
[374291119,1753266632390,-23693.49658974,0.00019068,2]
[374291120,1753266632400,-487.0302322,0.00019173,2]
[374291121,1753266632409,-552.95940882,0.00019173,2]
[374291122,1753266632419,-500.0,0.00019173,2]
[374291124,1753266632428,-500.0,0.00019173,2]
[374291127,1753266632437,-502.10699225,0.00019173,2]
[374291128,1753266632446,-500.0,0.00019173,2]
[374291132,1753266632455,-435.29018413,0.00019173,2]
[374291135,1753266632466,-500.0,0.00019173,2]
[374291136,1753266632475,-500.0,0.00019173,2]
[374291137,1753266632485,-500.0,0.00019173,2]
[374291138,1753266632494,-300.0,0.00019177,2]
[374291139,1753266632504,-460.0,0.00019178,2]
[374291141,1753266632513,-279.26852187,0.00019178,2]
[374291143,1753266632523,-460.0,0.00019178,2]
[374291145,1753266632532,-460.0,0.00019178,2]
[374291147,1753266632541,-460.0,0.00019178,2]
[374291149,1753266632551,-460.0,0.00019178,2]
[374291151,1753266632561,-460.0,0.00019178,2]
[374291153,1753266632571,-460.0,0.00019178,2]
[374291155,1753266632582,-460.0,0.00019178,2]
[374291157,1753266632593,-460.0,0.00019178,2]
[374291158,1753266632603,-460.0,0.00019178,2]
[374291161,1753266632613,-460.0,0.00019178,2]
[374291162,1753266632626,-460.0,0.00019178,2]
[374291164,1753266632635,-500.0,0.00019178,2]
[374291166,1753266632650,-460.0,0.00019178,2]
[374291168,1753266632660,-466.57,0.00019178,2]
[374291170,1753266632669,-460.0,0.00019178,2]
[374291172,1753266632679,-460.0,0.00019178,2]
[374291174,1753266632691,-1705.4,0.00019178,2]
[374291175,1753266632700,-460.0,0.00019178,2]
[374291176,1753266632709,-460.0,0.00019178,2]
[374291178,1753266632719,-460.0,0.00019178,2]
[374291180,1753266632729,-460.0,0.00019178,2]
[374291182,1753266632738,-790.07,0.00019178,2]
[374291183,1753266632747,-2782.39,0.00019178,2]
[374291185,1753266632756,-460.0,0.00019178,2]
[374291187,1753266632766,-460.0,0.00019178,2]
[374291188,1753266632775,-460.0,0.00019178,2]
[374291190,1753266632785,-2118.81,0.00019178,2]
[374291191,1753266632794,-460.0,0.00019178,2]
[374291192,1753266632803,-460.0,0.00019178,2]
[374291193,1753266632814,-460.0,0.00019178,2]
[374291194,1753266632824,-460.0,0.00019452,2]
[374291195,1753266632834,-460.0,0.00019452,2]
[374291196,1753266632843,-511.68,0.00019452,2]
[374291197,1753266632853,-460.0,0.00019452,2]
[374291198,1753266632862,-485.59267446,0.00019452,2]
[374291199,1753266632872,-573.91245876,0.00019452,2]
[374291200,1753266632882,-460.0,0.00019452,2]
[374291201,1753266632891,-460.0,0.00019452,2]
[374291202,1753266632900,-460.0,0.00019452,2]
[374291203,1753266632910,-460.0,0.00019452,2]
[374291204,1753266632919,-460.0,0.00019452,2]
[374291205,1753266632929,-460.0,0.00019452,2]
[374291206,1753266632938,-466.57,0.00019452,2]
[374291207,1753266632947,-460.0,0.00019452,2]
[374291208,1753266632957,-460.0,0.00019452,2]
[374291210,1753266632966,-1705.4,0.00019452,2]
[374291212,1753266632976,-460.0,0.00019452,2]
[374291214,1753266632986,-460.0,0.00019452,2]
[374291216,1753266632996,-460.0,0.00019452,2]
[374291218,1753266633006,-460.0,0.00019452,2]
[374291220,1753266633015,-790.07,0.00019452,2]
[374291222,1753266633025,-2782.39,0.00019452,2]
[374291224,1753266633035,-460.0,0.00019452,2]
[374291226,1753266633045,-460.0,0.00019452,2]
[374291228,1753266633055,-2118.81,0.00019452,2]
[374291230,1753266633064,-460.0,0.00019452,2]
[374291232,1753266633074,-460.0,0.00019452,2]
[374291234,1753266633084,-1000.0,0.00019721,2]
[374291236,1753266633093,-1000.0,0.00019721,2]
[374291238,1753266633103,-500.0,0.00019721,2]
[374291240,1753266633112,-851.3795676,0.00019721,2]
[374291242,1753266633123,-471.12,0.00019726,2]
[374291244,1753266633133,-460.0,0.00019726,2]
[374291246,1753266633143,-496.2402934,0.00019726,2]
[374291248,1753266633153,-460.0,0.00019726,2]
[374291250,1753266633162,-460.0,0.00019726,2]
[374291252,1753266633172,-460.0,0.00019726,2]
[374291254,1753266633182,-460.0,0.00019726,2]
[374291255,1753266633192,-466.57,0.00019726,2]
[374291256,1753266633201,-460.0,0.00019726,2]
[374291257,1753266633211,-460.0,0.00019726,2]
[374291258,1753266633221,-1705.4,0.00019726,2]
[374291259,1753266633230,-460.0,0.00019726,2]
[374291260,1753266633239,-460.0,0.00019726,2]
[374291261,1753266633249,-460.0,0.00019726,2]
[374291262,1753266633258,-460.0,0.00019726,2]
[374291263,1753266633268,-790.07,0.00019726,2]
[374291264,1753266633278,-2782.39,0.00019726,2]
[374291265,1753266633288,-537.82634601,0.00019726,2]
[374291266,1753266633297,-316.79911607,0.00019726,2]
[374291267,1753266633307,-2118.81,0.00019726,2]
[374291268,1753266633317,-460.0,0.00019726,2]
[374291269,1753266633327,-460.0,0.00019726,2]
[374291270,1753266633337,-460.0,0.0002,2]
[374291271,1753266633346,-460.0,0.0002,2]
[374291272,1753266633355,-460.0,0.0002,2]
[374291273,1753266633365,-466.57,0.0002,2]
[374291274,1753266633375,-460.0,0.0002,2]
[374291275,1753266633384,-460.0,0.0002,2]
[374291276,1753266633393,-1705.4,0.0002,2]
[374291277,1753266633403,-460.0,0.0002,2]
[374291278,1753266633412,-460.0,0.0002,2]
[374291279,1753266633422,-460.0,0.0002,2]
[374291280,1753266633431,-494.63432746,0.0002,2]
[374291281,1753266633441,-790.07,0.0002,2]
[374291282,1753266633451,-2782.39,0.0002,2]
[374291283,1753266633460,-2118.81,0.0002,2]
[374291284,1753266633470,-460.0,0.0002,2]
[374291285,1753266633480,-460.0,0.0002,2]
[374291286,1753266633490,-1500.0,0.00020268,2]
[374291287,1753266633499,-593.62365219,0.00020268,2]
[374291288,1753266633510,-500.0,0.00020273,2]
[374291289,1753266633520,-342.10839156,0.00020273,2]
[374291290,1753266633529,-463.07701952,0.00020273,2]
[374291291,1753266633542,-460.0,0.00020273,2]
[374291292,1753266633552,-460.0,0.00020273,2]
[374291293,1753266633562,-460.0,0.00020273,2]
[374291294,1753266633572,-460.0,0.00020273,2]
[374291295,1753266633581,-460.0,0.00020273,2]
[374291296,1753266633592,-460.0,0.00020273,2]
[374291297,1753266633602,-200.64658427,0.00020273,2]
[374291298,1753266633611,-652.42930791,0.00020273,2]
[374291299,1753266633625,-3254.51069209,0.00020273,2]
[374291300,1753266633635,-460.0,0.00020273,2]
[374291301,1753266633645,-460.0,0.00020273,2]
[374291302,1753266633658,-460.0,0.00020273,2]
[374291303,1753266633670,-460.0,0.00020273,2]
[374291304,1753266633680,-2272.97,0.00020273,2]
[374291305,1753266633690,-460.0,0.00020273,2]
[374291306,1753266633701,-656.48,0.00020273,2]
[374291307,1753266633712,-460.0,0.00020273,2]
[374291308,1753266633721,-460.0,0.00020273,2]
[374291309,1753266633732,-460.0,0.00020273,2]
[374291310,1753266633742,-460.0,0.00020273,2]
[374291311,1753266633752,-522.36,0.00020273,2]
[374291312,1753266633773,-1015.4,0.00020273,2]
[374291313,1753266633791,-460.0,0.00020273,2]
[374291314,1753266633800,-463.44080033,0.00020273,2]
[374291315,1753266633810,-460.0,0.00020273,2]
[374291316,1753266633820,-16130.54,0.00020273,2]
[374291317,1753266633830,-2548.52,0.00020273,2]
[374291318,1753266633839,-460.0,0.00020273,2]
[374291319,1753266633849,-460.0,0.00020273,2]
[374291320,1753266633859,-460.0,0.00020273,2]
[374291321,1753266633870,-460.0,0.00020273,2]
[374291322,1753266633880,-460.0,0.00020273,2]
[374291323,1753266633889,-500.01,0.00020273,2]
[374291324,1753266633899,-460.0,0.00020273,2]
[374291325,1753266633909,-601.3,0.00020273,2]
[374291326,1753266633918,-460.0,0.00020273,2]
[374291327,1753266633929,-460.0,0.00020273,2]
[374291328,1753266633939,-460.0,0.00020273,2]
[374291329,1753266633948,-460.0,0.00020273,2]
[374291330,1753266633958,-460.0,0.00020273,2]
[374291331,1753266633967,-460.0,0.00020273,2]
[374291332,1753266633977,-460.0,0.00020273,2]
[374291333,1753266633987,-460.0,0.00020273,2]
[374291334,1753266633998,-399.02906509,0.00020273,2]
[374291335,1753266634007,-460.0,0.00020273,2]
[374291336,1753266634018,-460.0,0.00020273,2]
[374291337,1753266634028,-460.0,0.00020273,2]
[374291338,1753266634038,-1052.63100278,0.00020273,2]
[374291350,1753266638588,-460.0,0.00019178,2]
[374291351,1753266638598,-460.0,0.00019178,2]
[374291352,1753266638607,-460.0,0.00019178,2]
[374291353,1753266638617,-460.0,0.00019178,2]
[374291354,1753266638628,-460.0,0.00019178,2]
[374291355,1753266638637,-460.0,0.00019452,2]
[374291356,1753266638652,-460.0,0.00019452,2]
[374291357,1753266638661,-460.0,0.00019726,2]
[374291358,1753266638670,-463.37390298,0.00019726,2]
[374291359,1753266638679,-500.0,0.00019999,2]
[374291360,1753266638689,-241.1626047,0.00019999,2]
[374291361,1753266638699,-500.0,0.00019999,2]
[374291362,1753266638708,-500.0,0.00019999,2]
[374291363,1753266638718,-273.01647951,0.00019999,2]
[374291364,1753266638728,-154.95284083,0.00019999,2]
[374291365,1753266638738,-500.0,0.00019999,2]
[374291366,1753266638747,-476.40423986,0.00019999,2]
[374291367,1753266638756,-406.94811532,0.00019999,2]
[374291369,1753266638765,-500.0,0.00019999,2]
[374291370,1753266638774,-500.0,0.00019999,2]
[374291371,1753266638783,-500.0,0.00019999,2]
[374291372,1753266638792,-500.0,0.00019999,2]
[374291373,1753266638801,-500.0,0.00019999,2]
[374291374,1753266638811,-500.0,0.00019999,2]
[374291375,1753266638820,-500.0,0.00019999,2]
[374291376,1753266638829,-500.0,0.00019999,2]
[374291377,1753266638838,-460.18143962,0.00019999,2]
[374291378,1753266638850,-39.81856038,0.00019999,2]
[374291379,1753266638859,-500.0,0.00019999,2]
[374291380,1753266638869,-500.0,0.00019999,2]
[374291381,1753266638879,-500.0,0.00019999,2]
[374291382,1753266638887,-500.0,0.00019999,2]
[374291383,1753266638897,-500.0,0.00019999,2]
[374291384,1753266638906,-14.17650297,0.00019999,2]
[374291385,1753266638918,-485.82349703,0.00019999,2]
[374291386,1753266638927,-328.80516286,0.00019999,2]
[374291387,1753266638936,-222.30087042,0.00019999,2]
[374291388,1753266638946,-500.0,0.00019999,2]
[374291389,1753266638955,-450.06142793,0.00019999,2]
[374291390,1753266638967,-49.93857207,0.00019999,2]
[374291391,1753266638977,-500.0,0.00019999,2]
[374291392,1753266638986,-460.0,0.0002,2]
[374291393,1753266638995,-2648.76142794,0.00020273,2]
[374291394,1753266639006,-760.49466332,0.00020273,2]
[374291395,1753266639040,-2231.84598523,0.00019178,2]
[374291396,1753266639051,-1888.28401477,0.00019178,2]
[374291397,1753266639061,-521.18,0.00019178,2]
[374291398,1753266639070,-291.63544391,0.00019452,2]
[374291399,1753266639079,-55.81290596,0.00020273,2]
[374291400,1753266639089,-1481.59,0.00020273,2]
[374291401,1753266639098,-460.0,0.00020273,2]
[374291402,1753266639107,-3147.65,0.00020273,2]
[374291403,1753266639117,-460.0,0.00020273,2]
[374291404,1753266639128,-460.0,0.00020273,2]
[374291405,1753266639137,-1132.24,0.00020273,2]
[374291406,1753266639146,-507.54,0.00020273,2]
[374291407,1753266639156,-471.07586251,0.00020273,2]
[374291408,1753266639165,-460.0,0.00020273,2]
[374291409,1753266639174,-460.0,0.00020273,2]
[374291410,1753266639184,-460.0,0.00020273,2]
[374291411,1753266639193,-460.0,0.00020273,2]
[374291412,1753266639202,-347.52,0.00020273,2]
[374291413,1753266639211,-466.57,0.00020273,2]
[374291414,1753266639310,-460.0,0.00020273,2]
[374291415,1753266639319,-460.0,0.00020273,2]
[374291416,1753266639329,-1705.4,0.00020273,2]
[374291417,1753266639338,-460.0,0.00020273,2]
[374291418,1753266639347,-460.0,0.00020273,2]
[374291419,1753266639357,-464.2059696,0.00020273,2]
[374291420,1753266639366,-790.07,0.00020273,2]
[374291421,1753266639377,-2782.39,0.00020273,2]
[374291422,1753266639386,-2118.81,0.00020273,2]
[374291423,1753266639395,-460.0,0.00020273,2]
[374291424,1753266639403,-460.0,0.00020273,2]
[374291425,1753266639413,-460.0,0.00020273,2]
[374291426,1753266639422,-151.0,0.000203,3]
[374291427,1753266639431,-500.0,0.000203,2]
[374291428,1753266639441,-158.27645893,0.00020309,2]
[374291429,1753266639451,-158.27900585,0.00020309,2]
[374291430,1753266639460,-500.0,0.00020309,2]
[374291431,1753266639469,-500.8524135,0.00020309,2]
[374291432,1753266639479,-500.0,0.00020309,2]
[374291433,1753266639488,-500.0,0.00020309,2]
[374291434,1753266639497,-500.0,0.00020311,2]
[374291435,1753266639506,-500.0,0.00020311,2]
[374291436,1753266639515,-500.0,0.00020311,2]
[374291437,1753266639524,-500.0,0.00020311,2]
[374291438,1753266639534,-500.3480752,0.00020311,2]
[374291439,1753266639543,-500.38964033,0.00020311,2]
[374291440,1753266639553,-500.0,0.00020311,2]
[374291441,1753266639562,-500.0,0.00020311,2]
[374291442,1753266639571,-500.0,0.00020311,2]
[374291443,1753266639580,-500.0,0.00020311,2]
[374291444,1753266639590,-500.0,0.00020311,2]
[374291445,1753266639599,-594.36062447,0.00020321,2]
[374291446,1753266639608,-1000.0,0.00020321,2]
[374291447,1753266639617,-500.0,0.00020321,2]
[374291448,1753266639627,-1004.19548328,0.00020321,2]
[374291449,1753266639637,-1000.0,0.00020321,2]
[374291450,1753266639648,-763.22455176,0.00020321,2]
[374291451,1753266639659,-157.210755,0.00020399,3]
[374291452,1753266639669,-151.388134,0.00020399,3]
[374291453,1753266639678,-571.0935272,0.000204,2]
[374291454,1753266639688,-151.0,0.0002044,2]
[374291455,1753266639699,-4236.81801808,0.00020447,2]
[374291456,1753266639708,-151.0,0.0002047,2]
[374291458,1753266639717,-151.0,0.000205,4]
[374291459,1753266639727,-3770.06697013,0.000205,2]
[374291461,1753266639737,-151.0,0.00020521,2]
[374291462,1753266639747,-151.0,0.00020521,2]
[374291463,1753266639756,-232.016584,0.00020521,2]
[374291464,1753266639765,-232.016584,0.00020521,2]
[374291465,1753266639775,-500.0,0.00020547,2]
[374291466,1753266639784,-460.0,0.00020547,2]
[374291467,1753266639794,-460.0,0.00020547,2]
[374291468,1753266639803,-460.0,0.00020547,2]
[374291469,1753266639812,-460.0,0.00020547,2]
[374291470,1753266639821,-328.983663,0.00020547,2]
[374291471,1753266639830,-328.983663,0.00020547,2]
[374291472,1753266639839,-460.0,0.00020547,2]
[374291473,1753266639849,-460.0,0.00020547,2]
[374291474,1753266639858,-460.0,0.00020547,2]
[374291475,1753266639867,-460.0,0.00020547,2]
[374291476,1753266639877,-268.6003848,0.00020547,2]
[374291478,1753266639886,-460.0,0.00020547,2]
[374291479,1753266639895,-555.21,0.00020547,2]
[374291480,1753266639904,-460.0,0.00020547,2]
[374291481,1753266639914,-460.0,0.00020547,2]
[374291482,1753266639923,-460.0,0.00020547,2]
[374291483,1753266639932,-460.0,0.00020547,2]
[374291484,1753266639941,-460.0,0.00020547,2]
[374291485,1753266639951,-460.0,0.00020547,2]
[374291486,1753266639960,-460.0,0.00020547,2]
[374291487,1753266639969,-460.0,0.00020547,2]
[374291488,1753266639979,-706.13,0.00020547,2]
[374291490,1753266639988,-460.0,0.00020547,2]
[374291492,1753266639997,-274.63969605,0.00020547,2]
[374291494,1753266640007,-446.90232727,0.00020547,2]
[374291495,1753266640016,-460.0,0.00020547,2]
[374291498,1753266640025,-460.0,0.00020547,2]
[374291501,1753266640035,-460.0,0.00020547,2]
[374291503,1753266640044,-460.0,0.00020547,2]
[374291505,1753266640053,-460.0,0.00020547,2]
[374291507,1753266640062,-173.52890661,0.00020547,2]
[374291509,1753266640072,-460.0,0.00020547,2]
[374291511,1753266640081,-460.0,0.00020547,2]
[374291513,1753266640091,-460.0,0.00020547,2]
[374291515,1753266640100,-460.0,0.00020547,2]
[374291517,1753266640109,-460.0,0.00020547,2]
[374291519,1753266640121,-460.0,0.00020547,2]
[374291522,1753266640132,-460.0,0.00020547,2]
[374291523,1753266640142,-460.0,0.00020547,2]
[374291525,1753266640151,-1951.91,0.00020547,2]
[374291527,1753266640161,-460.0,0.00020547,2]
[374291529,1753266640170,-460.0,0.00020547,2]
[374291531,1753266640179,-460.0,0.00020547,2]
[374291533,1753266640189,-460.0,0.00020547,2]
[374291535,1753266640198,-460.0,0.00020547,2]
[374291537,1753266640208,-460.0,0.00020547,2]
[374291539,1753266640217,-460.0,0.00020547,2]
[374291541,1753266640226,-460.0,0.00020547,2]
[374291543,1753266640236,-460.0,0.00020547,2]
[374291545,1753266640245,-489.58,0.00020547,2]
[374291547,1753266640254,-460.0,0.00020547,2]
[374291549,1753266640264,-460.0,0.00020547,2]
[374291551,1753266640273,-460.0,0.00020547,2]
[374291553,1753266640282,-647.91,0.00020547,2]
[374291555,1753266640294,-460.0,0.00020547,2]
[374291557,1753266640303,-460.0,0.00020547,2]
[374291559,1753266640312,-460.0,0.00020547,2]
[374291561,1753266640321,-534.43300934,0.00020547,2]
[374291563,1753266640331,-460.0,0.00020547,2]
[374291565,1753266640340,-460.0,0.00020547,2]
[374291567,1753266640349,-534.82,0.00020547,2]
[374291569,1753266640358,-460.0,0.00020547,2]
[374291571,1753266640368,-460.0,0.00020547,2]
[374291573,1753266640380,-460.0,0.00020547,2]
[374291575,1753266640389,-460.0,0.00020547,2]
[374291577,1753266640399,-3128.9,0.00020547,2]
[374291579,1753266640409,-460.0,0.00020547,2]
[374291581,1753266640418,-460.0,0.00020547,2]
[374291583,1753266640427,-460.0,0.00020547,2]
[374291585,1753266640436,-460.0,0.00020547,2]
[374291587,1753266640446,-460.0,0.00020547,2]
[374291589,1753266640455,-460.0,0.00020547,2]
[374291591,1753266640464,-460.0,0.00020547,2]
[374291593,1753266640474,-460.0,0.00020547,2]
[374291595,1753266640483,-460.0,0.00020547,2]
[374291597,1753266640493,-546.12,0.00020547,2]
[374291599,1753266640503,-460.0,0.00020547,2]
[374291601,1753266640512,-460.0,0.00020547,2]
[374291603,1753266640522,-516.4,0.00020547,2]
[374291605,1753266640531,-460.0,0.00020547,2]
[374291607,1753266640540,-460.0,0.00020547,2]
[374291609,1753266640550,-460.0,0.00020547,2]
[374291611,1753266640560,-563.7,0.00020547,2]
[374291613,1753266640569,-460.0,0.00020547,2]
[374291614,1753266640578,-460.0,0.00020547,2]
[374291616,1753266640587,-460.0,0.00020547,2]
[374291618,1753266640597,-570.94,0.00020547,2]
[374291620,1753266640607,-460.0,0.00020547,2]
[374291622,1753266640617,-460.0,0.00020547,2]
[374291624,1753266640631,-460.0,0.00020547,2]
[374291626,1753266640641,-460.0,0.00020547,2]
[374291628,1753266640655,-460.0,0.00020547,2]
[374291630,1753266640664,-460.0,0.00020547,2]
[374291632,1753266640674,-460.0,0.00020547,2]
[374291634,1753266640684,-460.0,0.00020547,2]
[374291636,1753266640695,-460.0,0.00020547,2]
[374291638,1753266640705,-3906.94,0.00020547,2]
[374291640,1753266640718,-460.0,0.00020547,2]
[374291642,1753266640730,-460.0,0.00020547,2]